[Event "Thai Dai Van Nguyen vs Nigel Short 2020"]
[Site "Prague"]
[Date "2020.10.10"]
[Round "1.1"]
[White "Short, Nigel D"]
[Black "Nguyen, Thai Dai Van"]
[Result "1/2-1/2"]
[ECO "C67"]
[WhiteElo "2626"]
[BlackElo "2571"]
[Annotator "RC"]
[PlyCount "109"]
[EventDate "2020.10.10"]
[EventCountry "CZE"]
[SourceTitle "playchess.com"]
[Source "ChessBase"]
[SourceQuality "1"]
[TimeControl "1200+10"]

1. e4 {[%emt 0:00:00]} e5 {[%emt 0:00:00]} 2. Nf3 {[%emt 0:00:01]} Nc6 {[%emt 0:00:11]} 3. Bb5 {[%emt 0:00:05]} Nf6 {[%emt 0:00:16]} 4. O-O {[%emt 0:00:09]} Nxe4 {[%emt 0:00:04]} 5. d4 {[%emt 0:00:06]} Nd6 {[%emt 0:00:07]} 6. Bxc6 {[%emt 0:00:04]} dxc6 {[%emt 0:00:08]} 7. dxe5 {[%emt 0:00:04]} Nf5 {[%emt 0:00:12]} 8. Qxd8+ {[%emt 0:00:07]} Kxd8 {[%emt 0:00:04]} 9. Rd1+ {[%emt 0:00:06]} Ke8 {[%emt 0:00:08]} 10. Nc3 {[%emt 0:00:06]} Ne7 {[%emt 0:01:33]} 11. Bg5 {[%emt 0:01:26]} h6 {[%emt 0:02:33]} 12. Bxe7 {[%emt 0:00:12]} Bxe7 {[%emt 0:00:07]} 13. Nd4 {[%emt 0:00:26]} Bd7 {[%emt 0:03:13]} 14. Rd3 {[%emt 0:00:52]} Rd8 {[%emt 0:02:24]} 15. Rad1 {[%emt 0:00:28]} Bg4 {[%emt 0:01:18]} 16. f3 {[%emt 0:00:42]} Bc8 {[%emt 0:00:02]} 17. Kf2 {[%emt 0:04:19]} a6 {[%emt 0:02:43]} 18. Ne4 {[%emt 0:02:06]} f5 {[%emt 0:03:15]} 19. exf6 {[%emt 0:02:19]} gxf6 {[%emt 0:00:02]} 20. c4 {[%emt 0:01:23]} Kf7 {[%emt 0:00:25]} 21. b3 {[%emt 0:00:37]} a5 {[%emt 0:00:35]} 22. a4 {[%emt 0:01:40]} h5 {[%emt 0:00:44]} 23. h4 {[%emt 0:01:56]} Rhg8 {[%emt 0:01:35]} 24. Ne2 {[%emt 0:00:35]} Rxd3 {[%emt 0:01:00]} 25. Rxd3 {[%emt 0:00:02]} Bf5 {[%emt 0:01:17]} 26. Nf4 {[%emt 0:00:39]} Bxe4 {[%emt 0:00:02]} 27. fxe4 {[%emt 0:00:02]} Rg4 {[%emt 0:00:17]} 28. Nxh5 {[%emt 0:02:04]} Rxh4 {[%emt 0:00:03]} 29. Ng3 {[%emt 0:00:05]} Bd6 {[%emt 0:00:16]} 30. Nf5 {[%emt 0:00:05]} Rxe4 {[%emt 0:00:07]} 31. Rxd6 {[%emt 0:00:18]} Rf4+ {[%emt 0:00:03]} 32. Kg3 {[%emt 0:00:39]} Rxf5 {[%emt 0:00:02]} 33. Rd7+ {[%emt 0:00:01]} Ke6 {[%emt 0:00:29]} 34. Rxc7 {[%emt 0:00:02]} Kd6 {[%emt 0:00:02]} 35. Rxb7 {[%emt 0:00:03]} Kc5 {[%emt 0:00:15]} 36. Kh4 {[%emt 0:00:48]} Rf2 {[%emt 0:00:04]} 37. g4 {[%emt 0:00:02]} Rf1 {[%emt 0:00:22]} 38. Kh5 {[%emt 0:00:17]} Rf4 {[%emt 0:00:08]} 39. Rb8 {[%emt 0:00:29]} Rf3 {[%emt 0:00:03]} 40. Rb7 {[%emt 0:00:21]} Rf4 {[%emt 0:00:01]} 41. Rb8 {[%emt 0:00:35]} Rf3 {[%emt 0:00:01]} 42. Rf8 {[%emt 0:00:08]} Rxb3 {[%emt 0:00:11]} 43. Rxf6 {[%emt 0:00:02]} Rh3+ {[%emt 0:00:04]} 44. Kg6 {[%emt 0:00:02]} Kxc4 {[%emt 0:00:02]} 45. Rxc6+ {[%emt 0:00:05]} Kb4 {[%emt 0:00:01]} 46. Rb6+ {[%emt 0:00:06]} Kxa4 {[%emt 0:00:03]} 47. g5 {[%emt 0:00:01]} Rg3 {[%emt 0:00:05]} 48. Kf6 {[%emt 0:00:05]} Ka3 {[%emt 0:00:02]} 49. g6 {[%emt 0:00:02]} a4 {[%emt 0:00:03]} 50. g7 {[%emt 0:00:01]} Ka2 {[%emt 0:00:03]} 51. Kf7 {[%emt 0:00:02]} Rxg7+ {[%emt 0:00:04]} 52. Kxg7 {[%emt 0:00:02]} a3 {[%emt 0:00:02]} 53. Kf6 {[%emt 0:00:04]} Ka1 {[%emt 0:00:02]} 54. Ke5 {[%emt 0:00:01]} a2 {[%emt 0:00:02]} 55. Ke4 {[%emt 0:00:03]} 1/2-1/2